{"text_format":"1","workbook":"xlsx","n_sheets":4,"sheets":["Menu","CHARGE DE CONSIGNATION","CHARGE DE TRAVAUX","TABLEAU"],"not_rendered":{"charts":0,"images":0,"macros":1,"external_links":0,"defined_names":1,"comments":0,"pivot_tables":0},"unopened":[],"bounds":{"document_bytes":16777216,"sheet_cells":100000,"rows_first":2000,"rows_last":500,"rows_between":2000,"halvings":0,"cell_chars":16384,"cell_head_chars":4096},"cells_cut":0,"cells_raw":0,"read":"whole","date_system":"1900"}

{"sheet":"Menu","index":0,"n_rows":0,"n_cols":0,"rows_kept":0,"cut":false,"hidden":false,"merged":[]}

{"sheet":"CHARGE DE CONSIGNATION","index":1,"n_rows":59,"n_cols":24,"rows_kept":59,"cut":false,"hidden":false,"merged":[[49,13,49,19],[49,23,49,26],[51,15,51,20],[53,7,53,9],[53,11,53,14],[17,7,19,25],[23,9,23,17],[23,20,23,26],[27,3,31,25],[41,8,45,26],[8,6,8,17],[35,1,39,27],[0,8,1,20],[0,21,0,28],[1,22,1,28],[6,5,6,17],[2,0,2,28],[0,0,0,5],[0,6,0,7],[1,0,1,5],[1,6,1,7],[4,8,4,17],[4,21,4,26],[10,10,11,25],[13,5,13,14],[15,6,15,15]]}
[2,null,null,null,null,null,null,null,"FORMULAIRE DE CONSIGNATION\nET TRAVAUX D’ORDRE ELECTRIQUE",null,null,null,null,null,null,null,null,null,null,null,null," Numéro fiche"]
[null,null,null,null,null,null,null,null,null,null,null,null,null,null,null,null,null,null,null,null,null,"N°"]
[]
[]
[null,null,"Le chargé de travaux, M.",null,null,null,null,null,{"$f":"VLOOKUP($A$1,TABLEAU!$A$2:$AB$121,3,TRUE)","v":0},null,null,null,null,null,null,null,null,null,null," Tél : ",null,{"$f":"VLOOKUP($A$1,TABLEAU!$A$2:$AB$121,4,TRUE)","v":0}]
[]
[null,null,"Société : ",null,null,{"$f":"VLOOKUP($A$1,TABLEAU!$A$2:$AB$121,5,TRUE)","v":0}]
[]
[null,null,"Habilitation : ",null,null,null,{"$f":"VLOOKUP($A$1,TABLEAU!$A$2:$AB$121,6,TRUE)","v":0}]
[]
[null,null,"Intervenant sur l'installation ci-après :",null,null,null,null,null,null,null,{"$f":"VLOOKUP($A$1,TABLEAU!$A$2:$AB$121,7,TRUE)","v":0}]
[]
[]
[null,null,"Local : ",null,null,{"$f":"VLOOKUP($A$1,TABLEAU!$A$2:$AB$121,8,TRUE)","v":0}]
[]
[null,null,"Equipement : ",null,null,null,{"$f":"VLOOKUP($A$1,TABLEAU!$A$2:$AB$121,9,TRUE)","v":0}]
[]
[null,null,"Contrat ou travaux :",null,null,null,null,{"$f":"VLOOKUP($A$1,TABLEAU!$A$2:$AB$121,10,TRUE)","v":0}]
[]
[]
[]
[]
[]
[null,null,"Le chargé de consignation, M.",null,null,null,null,null,null,{"$f":"VLOOKUP($A$1,TABLEAU!$A$2:$AB$121,12,TRUE)","v":0},null,null,null,null,null,null,null,null,null,"Tél.",{"$f":"VLOOKUP($A$1,TABLEAU!$A$2:$AB$121,13,TRUE)","v":0}]
[]
[null,null,"Atteste qu'en vue de l'exécution de ces travaux, il a consigné :"]
[]
[null,null,null,{"$f":"VLOOKUP($A$1,TABLEAU!$A$2:$AB$121,14,TRUE)","v":0}]
[]
[]
[]
[]
[]
[]
[]
[null,"Le chargé de consignation de la société Eiffage Services est habilité à minima BC et/ou HC suivant le domaine de tension.\nLe chargé de travaux doit considérer comme étant sous tension tout ouvrage électrique autre que ceux dont la consignation lui est certifiée par la présente attestation ou par d'autres attestations en sa possession.\nLe chargé de travaux pourra travailler après avoir pris les mesures de sécurité qui lui incombent (vérification d'absence de tension, mise à la terre et en court-circuit)."]
[]
[]
[]
[]
[]
[null,"Dispositions particulières : ",null,null,null,null,null,null,{"$f":"VLOOKUP($A$1,TABLEAU!$A$2:$AB$121,15,TRUE)","v":0}]
[]
[]
[]
[]
[]
[]
[]
[null,null,"L'avis de fin de travail devra être rendu au plus tard le ",null,null,null,null,null,null,null,null,null,null,{"$f":"VLOOKUP($A$1,TABLEAU!$A$2:$AB$121,17,TRUE)","v":"00:00:00"},null,null,null,null,null,null,null,"à",null,{"$f":"VLOOKUP($A$1,TABLEAU!$A$2:$AB$121,18,TRUE)","v":0}]
[]
[null,null,"Le délai de restitution des installations, en cas d'urgence, est de ",null,null,null,null,null,null,null,null,null,null,null,null,{"$f":"VLOOKUP($A$1,TABLEAU!$A$2:$AB$121,19,TRUE)","v":0}]
[]
[null,null,"Attestation délivrée le  ",null,null,null,null,{"$f":"VLOOKUP($A$1,TABLEAU!$A$2:$AB$121,20,TRUE)","v":"00:00:00"},null,null,"à",{"$f":"VLOOKUP($A$1,TABLEAU!$A$2:$AB$121,21,TRUE)","v":0},null,null,null,null,"au chargé de travaux qui s'engage à respecter "]
[]
[null,null,"les prestations de sécurité en vigueur."]
[]
[]
[null,null,null,null,null,null,null,null,null,null,"Le chargé de consignation",null,null,null,null,null,null,null,null,null,"Le chargé de travaux"]

{"sheet":"CHARGE DE TRAVAUX","index":2,"n_rows":79,"n_cols":22,"rows_kept":79,"cut":false,"hidden":false,"merged":[[2,0,2,28],[6,5,6,17],[8,6,8,17],[35,1,39,27],[0,0,0,5],[0,6,0,7],[0,8,1,20],[0,21,0,28],[1,0,1,5],[1,6,1,7],[1,22,1,28]]}
[null,null,null,null,null,null,null,null,"FORMULAIRE DE CONSIGNATION\nET TRAVAUX D’ORDRE ELECTRIQUE",null,null,null,null,null,null,null,null,null,null,null,null," Numéro fiche"]
[null,null,null,null,null,null,null,null,null,null,null,null,null,null,null,null,null,null,null,null,null,"N°"]
[]
[]
[null,null,"Le chargé de travaux, M.",null,null,null,null,null,null,null,null,null,null,null,null,null,null,null,null," Tél : "]
[]
[null,null,"Société : "]
[]
[null,null,"Habilitation : "]
[]
[null,null,"Intervenant sur l'installation ci-après :"]
[]
[]
[null,null,"Local : "]
[]
[null,null,"Equipement : "]
[]
[null,null,"Contrat ou travaux :"]
[]
[]
[]
[]
[]
[null,null,"Le chargé de consignation, M.",null,null,null,null,null,null,null,null,null,null,null,null,null,null,null,null,"Tél."]
[]
[null,null,"Atteste qu'en vue de l'exécution de ces travaux, il a consigné :"]
[]
[]
[]
[]
[]
[]
[]
[]
[]
[null,"Le chargé de consignation de la société Eiffage Services est habilité à minima BC et/ou HC suivant le domaine de tension.\nLe chargé de travaux doit considérer comme étant sous tension tout ouvrage électrique autre que ceux dont la consignation lui est certifiée par la présente attestation ou par d'autres attestations en sa possession.\nLe chargé de travaux pourra travailler après avoir pris les mesures de sécurité qui lui incombent (vérification d'absence de tension, mise à la terre et en court-circuit)."]
[]
[]
[]
[]
[]
[null,"Dispositions particulières : "]
[]
[]
[]
[]
[]
[]
[]
[null,null,"L'avis de fin de travail devra être rendu au plus tard le ",null,null,null,null,null,null,null,null,null,null,null,null,null,null,null,null,null,null,"à"]
[]
[null,null,"Le délai de restitution des installations, en cas d'urgence, est de "]
[]
[null,null,"Attestation délivrée le  ",null,null,null,null,null,null,null,"à",null,null,null,null,null,"au chargé de travaux qui s'engage à respecter "]
[]
[null,null,"les prestations de sécurité en vigueur."]
[]
[]
[null,null,null,null,null,null,null,null,null,null,"Le chargé de consignation",null,null,null,null,null,null,null,null,null,"Le chargé de travaux"]
[]
[]
[]
[]
[]
[]
[null,null,null,null,null,null,null,null,null,null,null,null,null,null,null,"AVIS DE FIN DE TRAVAIL"]
[]
[null,"Le chargé de travaux, M"]
[]
[null,"de la société :"]
[]
[null,"Avise M.",null,null,null,null,null,null,null,null,null,null,null,"chargé de consignation, que les travaux désignés"]
[]
[null," précédemment sont terminés le",null,null,null,null,null,null,null,null,null,null,null,null,"à",null,null,null,null,"et que son personnel a été  rassemblé "]
[]
[null,"et informé de la fin du travail. Le chargé de travaux déclare en outre, avoir enlevé les dispositifs de sécurité et autres matériels placés"]
[null," par ses soins et remis les ouvrages en ordre de marche en ce qui le concerne."]
[]
[null,null,null,null,null,null,null,null,null,null,"Le chargé de consignation",null,null,null,null,null,null,null,null,null,"Le chargé de travaux"]

{"sheet":"TABLEAU","index":3,"n_rows":129,"n_cols":28,"rows_kept":129,"cut":false,"hidden":false,"merged":[]}
[0,{"$f":"A1+1","v":1},{"$f":"B1+1","v":2},{"$f":"C1+1","v":3},{"$f":"D1+1","v":4},5,6,7,8,9,10,11,12,13,14,15,16,17,18,19,20,21,22,23,24,25,26,27]
[{"$f":"A1+1","v":1},"n°fiche","Nom \ncharge de travaux","Télephone \nTravaux","Société","Habilitation","Intervenants","local","Equipement","Contrat ou Travaux",null,"Nom\n charge de consignation","Télephone\n consignation","Commentaire\nExecution des travaux","Disposition \nparticulières",null,"date\ndu rendu fin de travail","heure\n du rendu fin de travail","delai \nde restitution","date \nde l'attestation","heure \nde l'attestation",null,"Nom\nchargé de travaux","Société","Nom\ncharge de consignation","date \n travaux terminer","heure\n travaux terminer"]
[{"$f":"A2+1","v":2}]
[3]
[4]
[5]
[6]
[7]
[8]
[9]
[10]
[11]
[12]
[13]
[14]
[15]
[16]
[17]
[18]
[19]
[20]
[21]
[22]
[23]
[24]
[25]
[26]
[27]
[28]
[29]
[30]
[31]
[32]
[33]
[34]
[35]
[36]
[37]
[38]
[39]
[40]
[41]
[42]
[43]
[44]
[45]
[46]
[47]
[48]
[49]
[50]
[51]
[52]
[53]
[54]
[55]
[56]
[57]
[58]
[59]
[60]
[61]
[62]
[63]
[64]
[65]
[{"$f":"A66+1","v":66}]
[67]
[68]
[69]
[70]
[71]
[72]
[73]
[74]
[75]
[76]
[77]
[78]
[79]
[80]
[81]
[82]
[83]
[84]
[85]
[86]
[87]
[88]
[89]
[90]
[91]
[92]
[93]
[94]
[95]
[96]
[97]
[98]
[99]
[100]
[101]
[102]
[103]
[104]
[105]
[106]
[107]
[108]
[109]
[110]
[111]
[112]
[113]
[114]
[115]
[116]
[117]
[118]
[119]
[120]
[119]
[120]
[121]
[122]
[123]
[124]
[125]
[126]